bitfinex/quotes_ETHUSD_20220118
["timestamp","ask_amount","ask_price","bid_price","bid_amount"]
[1642499275387,1.59091343,3166.9,3166.5,1.0]
[1642499275388,1.59091343,3166.9,3166.6,0.00227369]
[1642499275786,1.59091343,3166.9,3166.6,1.00227369]
[1642499275987,1.49421082,3167.1,3166.6,1.00227369]
[1642499276188,1.49421082,3167.1,3166.7,0.00170527]
[1642499276987,1.59091343,3167.3,3166.7,0.00170527]
[1642499277188,1.59091343,3167.4,3166.4,1.00341054]
[1642499277429,0.00113685,3167.2,3166.4,1.12971054]
[1642499277628,0.00113685,3167.2,3166.5,0.00284211]
[1642499277832,0.00113685,3167.2,3166.5,4.00801031]
[1642499278033,0.00113685,3167.2,3167.1,1.42832054]
[1642499278932,0.00113685,3167.2,3167.1,2.42832054]
[1642499279733,0.00113685,3167.2,3167.1,4.02832054]
[1642499279933,0.00113685,3167.2,3167.1,4.30952054]
[1642499280134,0.00113685,3167.2,3167.1,6.02623349]
[1642499280334,0.00113685,3167.2,3167.1,2.88332054]
[1642499280533,0.00113685,3167.2,3167.1,7.81998586]
[1642499280736,0.00113685,3167.2,3167.1,7.20298586]
[1642499280934,0.00113685,3167.2,3167.1,4.99252054]
[1642499281179,0.00113685,3167.2,3167.1,8.32918586]
[1642499281382,1.59091343,3167.9,3167.2,5.35]
[1642499281581,1.59091343,3167.9,3167.1,37.65718586]
[1642499281582,1.59091343,3167.9,3167.3,6.00677532]
[1642499281779,0.00341054,3167.8,3167.4,3.30144145]
[1642499281983,0.00341054,3167.8,3167.5,0.1262]
[1642499282179,0.00284212,3167.7,3167.6,3.105]
[1642499282382,0.00284212,3167.7,3167.6,3.5312]
[1642499282582,0.00284212,3167.7,3167.6,4.5312]
[1642499282982,0.00284212,3167.7,3167.6,5.5312]
[1642499283585,0.00284212,3167.7,3167.6,8.6546745]
[1642499283784,0.00284212,3167.7,3167.6,6.0046745]
[1642499283984,0.00284212,3167.7,3167.6,2.8812]
[1642499284185,0.00284212,3167.7,3167.6,5.87370612]
[1642499284385,1.59091343,3168.4,3167.7,3.29698418]
[1642499284593,9.20677015,3168.7,3168.0,0.78892]
[1642499284594,3.7022,3168.7,3168.0,0.78892]
[1642499284841,0.00341054,3168.3,3168.1,0.455]
[1642499285028,0.00341054,3168.3,3168.1,0.755]
[1642499285230,0.00284212,3168.2,3168.1,3.75591337]
[1642499285431,0.00284212,3168.2,3168.1,4.28003176]
[1642499285628,0.00284212,3168.2,3168.1,6.72048128]
[1642499285829,0.00284212,3168.2,3168.1,4.49544952]
[1642499286528,0.00284212,3168.2,3168.1,4.62164952]
[1642499287133,0.00284212,3168.2,3168.1,6.20639306]
[1642499288130,0.95678813,3168.9,3168.2,3.84714206]
[1642499288332,0.95678813,3168.9,3168.3,4.62487603]
[1642499288579,0.00341054,3168.8,3168.3,6.19500964]
[1642499288981,0.00284211,3168.7,3168.3,6.19500964]
[1642499289181,0.00284211,3168.7,3168.6,1.0]
[1642499289382,0.95678813,3169.0,3168.6,3.1717]
[1642499289583,0.95678813,3169.0,3168.7,3.98953431]
[1642499289787,0.95678813,3169.0,3168.8,5.805]
[1642499289788,0.00397896,3168.9,3168.8,5.805]
[1642499289984,0.00397896,3168.9,3168.8,9.60495607]
[1642499290185,0.05532009,3169.0,3168.9,3.55]
[1642499290382,0.05532009,3169.0,3168.9,7.50485964]
[1642499290584,1.59091343,3169.2,3169.0,6.43103547]
[1642499290784,0.26701343,3169.2,3169.1,26.26452817]
[1642499291090,2.38637015,3169.4,3169.3,0.3]
[1642499291091,0.63027015,3169.4,3169.3,0.3]
[1642499291286,0.00840098,3169.6,3169.4,2.7]
[1642499291485,0.00840098,3169.6,3169.5,3.155]
[1642499291684,0.00840098,3169.6,3169.5,4.155]
[1642499291884,0.01237994,3169.6,3169.5,4.455]
[1642499292343,0.01237994,3169.6,3169.5,0.755]
[1642499292530,0.01237994,3169.6,3169.5,1.755]
[1642499292731,2.81237994,3169.6,3169.5,1.25414206]
[1642499292934,2.81237994,3169.6,3169.5,2.25414206]
[1642499293134,0.01237994,3169.6,3169.5,1.95414206]
[1642499293937,0.01237994,3169.6,3169.5,0.455]
[1642499294334,0.01237994,3169.6,3169.5,1.055]
[1642499294537,0.01237994,3169.6,3169.5,0.755]
[1642499294940,0.01237994,3169.6,3169.5,1.755]
[1642499295137,0.01237994,3169.6,3169.5,1.455]
[1642499295938,0.01237994,3169.6,3169.5,0.455]
[1642499296480,0.01237994,3169.6,3169.5,0.755]
[1642499297280,0.01237994,3169.6,3169.5,4.87316089]
[1642499297483,0.01237994,3169.6,3169.5,5.87316089]
[1642499297681,0.01237994,3169.6,3169.5,6.17316089]
[1642499297882,0.01237994,3169.6,3169.5,7.17316089]
[1642499298083,0.01237994,3169.6,3169.5,8.5180692]
[1642499298484,3.8617,3170.4,3169.8,0.78829]
[1642499298686,3.8617,3170.4,3169.9,4.15984738]
[1642499298885,0.00341055,3170.2,3169.9,4.45984738]
[1642499299086,1.39536962,3170.1,3170.0,1.0]
[1642499299287,1.39821174,3170.1,3170.0,1.755]
[1642499299485,1.39821174,3170.1,3170.0,0.755]
[1642499299687,1.39821174,3170.1,3170.0,0.455]
[1642499300627,1.39821174,3170.1,3169.6,0.95414206]
[1642499300829,1.39821174,3170.1,3169.6,0.49914206]
[1642499301032,0.0022737,3170.0,3169.6,0.49914206]
[1642499301232,0.076,3169.9,3169.6,0.49914206]
[1642499301435,0.00170528,3169.9,3169.7,1.24486534]
[1642499301634,0.126,3171.0,3169.9,18.47]
[1642499301834,1.58939029,3171.7,3170.0,4.88345998]
[1642499301835,0.126,3171.5,3170.0,4.88345998]
[1642499302037,0.00511581,3170.8,3170.1,1.455]
[1642499302238,0.126,3171.6,3170.6,0.01248911]
[1642499302434,7.42,3172.4,3170.6,0.01248911]
[1642499302435,3.67347573,3172.6,3171.5,1.45498498]
[1642499302747,2.58865219,3172.8,3172.4,0.3]
[1642499302939,0.1261,3173.3,3172.4,0.3]
[1642499302940,3.97278206,3173.3,3172.6,2.96279715]
[1642499303138,0.126,3173.4,3172.6,2.96279715]
[1642499303139,3.97464275,3173.8,3172.9,5.39357725]
[1642499303343,3.97464275,3173.8,3173.7,3.2120479]
[1642499303593,6.62245955,3174.3,3174.2,3.54791391]
[1642499303790,6.62245955,3174.3,3174.2,0.455]
[1642499303791,7.81984024,3174.3,3174.2,0.455]
[1642499303990,7.81984024,3174.3,3174.2,0.755]
[1642499304391,7.81984024,3174.3,3174.2,1.055]
[1642499304594,7.81984024,3174.3,3174.2,0.455]
[1642499304595,7.32069818,3174.3,3174.2,0.455]
[1642499304991,7.44669818,3174.3,3173.9,1.0]
[1642499305395,0.01932639,3174.2,3173.9,1.3]
[1642499305794,0.01875797,3174.1,3173.9,1.0]
[1642499305992,0.01875797,3174.1,3173.5,0.755]
[1642499306194,0.01818955,3174.0,3173.5,0.755]
[1642499306393,0.01818955,3174.0,3173.5,19.351]
[1642499306594,0.01762112,3173.9,3173.6,0.01808446]
[1642499306795,0.01762112,3173.9,3173.7,0.581]
[1642499306994,0.0170527,3173.8,3173.7,0.881]
[1642499307461,0.0170527,3173.8,3173.7,0.755]
[1642499307847,0.0170527,3173.8,3173.7,0.455]
[1642499308050,0.0170527,3173.8,3173.7,0.755]
[1642499308248,0.0170527,3173.8,3173.7,1.255]
[1642499309454,0.0170527,3173.8,3173.7,0.755]
[1642499311786,0.0170527,3173.8,3173.7,22.99981766]
[1642499311983,0.0170527,3173.8,3173.7,19.351]
[1642499312184,1.2112793,3173.8,3173.7,20.651]
[1642499312781,1.2112793,3173.8,3173.7,22.42217]
[1642499312983,0.0170527,3173.8,3173.7,22.42217]
[1642499313587,4.5934,3174.2,3173.9,0.02925485]
[1642499313788,1.608867,3174.4,3174.0,0.455]
[1642499313992,1.608867,3174.4,3174.1,3.48985033]
[1642499314187,1.608867,3174.4,3174.2,1.24223]
[1642499314387,1.608867,3174.4,3174.2,2.84223]
[1642499315033,4.4869,3174.9,3174.2,2.84223]
[1642499315034,4.4869,3174.9,3174.4,4.5]
[1642499315234,4.4869,3174.9,3174.6,1.61018992]
[1642499315535,0.00568423,3174.8,3174.7,0.8809]
[1642499315740,0.00568423,3174.8,3174.7,0.755]
[1642499315935,0.00568423,3174.8,3174.7,1.055]
[1642499316236,0.00568423,3174.8,3174.7,0.755]
[1642499317035,0.00568423,3174.8,3174.7,0.2814159]
[1642499317235,0.00568423,3174.8,3174.3,0.4999473]
[1642499317434,0.13168423,3174.8,3174.3,0.4999473]
[1642499317635,0.00511581,3174.7,3174.3,0.4999473]
[1642499318036,0.00454739,3174.6,3174.3,0.4999473]
[1642499318436,1.1983539,3174.4,3174.0,0.455]
[1642499318691,1.1983539,3174.4,3174.0,0.755]
[1642499318891,0.00284212,3174.3,3174.0,2.055]
[1642499319089,0.00284212,3174.3,3174.0,1.755]
[1642499319291,0.00227369,3174.2,3174.0,1.755]
[1642499319490,0.00227369,3174.2,3173.5,0.6259473]
[1642499319491,5.2,3174.0,3173.5,0.6259473]
[1642499319693,0.01222808,3173.6,3173.5,0.4999473]
[1642499319891,0.13822808,3173.6,3173.5,0.4999473]
[1642499320191,1.39667129,3173.9,3173.2,0.012462]
[1642499320192,1.52267129,3173.9,3173.2,0.012462]
[1642499320391,1.52267129,3173.9,3173.3,0.126]
[1642499320694,1.52267129,3173.9,3173.3,0.12884212]
[1642499320896,1.52267129,3173.9,3173.4,0.78747]
[1642499321094,1.52267129,3173.9,3173.5,19.051]
[1642499321294,1.32193743,3173.7,3173.6,0.455]
[1642499321493,1.32193743,3173.7,3173.6,1.58384212]
[1642499321696,1.32193743,3173.7,3173.6,0.58384212]
[1642499321895,1.32193743,3173.7,3173.6,0.00284212]
[1642499322732,1.32193743,3173.7,3173.3,0.00454739]
[1642499322933,1.32193743,3173.7,3173.6,0.00284212]
[1642499323134,1.32193743,3173.7,3173.3,0.00454739]
[1642499323734,1.32193743,3173.7,3173.3,0.79204739]
[1642499323935,1.32193743,3173.7,3173.4,0.755]
[1642499324136,1.32193743,3173.7,3173.4,1.05897896]
[1642499324334,1.32193743,3173.7,3173.5,0.00341054]
[1642499324534,1.32193743,3173.7,3173.6,0.455]
[1642499324937,1.32193743,3173.7,3173.6,0.75784212]
[1642499325137,0.12997896,3174.8,3173.7,2.5]
[1642499325338,0.12997896,3174.8,3173.9,1.08225569]
[1642499325537,1.42569025,3174.6,3174.0,0.78225569]
[1642499325941,0.00227369,3174.5,3174.0,0.78225569]
[1642499326398,0.00170527,3174.4,3174.0,0.78225569]
[1642499326795,0.00113685,3174.3,3174.0,0.78225569]
[1642499327298,1.42569025,3174.6,3174.0,0.78225569]
[1642499327299,0.00227369,3174.5,3174.0,0.78225569]
[1642499327695,1.42569025,3174.6,3174.0,0.78225569]
[1642499327696,0.00170527,3174.4,3174.0,0.78225569]
[1642499328096,0.00113685,3174.3,3174.0,0.78225569]
[1642499328499,1.42569025,3174.6,3174.0,0.78225569]
[1642499328500,0.00227369,3174.5,3174.0,0.78225569]
[1642499328901,0.00170527,3174.4,3174.0,0.78225569]
[1642499329401,0.00113685,3174.3,3174.0,0.78225569]
[1642499329831,0.00227369,3174.5,3174.0,0.78225569]
[1642499330233,2.90899477,3174.6,3174.0,0.78225569]
[1642499330234,0.00170527,3174.4,3174.0,0.78225569]
[1642499330634,0.00113685,3174.3,3174.0,0.78225569]
[1642499331036,0.00227369,3174.5,3174.0,0.78225569]
[1642499331435,0.00170527,3174.4,3174.0,0.78225569]
[1642499331833,0.00113685,3174.3,3174.0,0.78225569]
[1642499332235,0.00227369,3174.5,3174.0,0.78225569]
[1642499332534,0.00170527,3174.4,3174.0,0.78225569]
[1642499332833,0.00113685,3174.3,3174.0,0.78225569]
[1642499333033,0.00113685,3174.3,3174.0,1.56961569]
[1642499333333,0.00227369,3174.5,3174.0,1.56961569]
[1642499333604,0.00170527,3174.4,3174.0,1.56961569]
[1642499334013,0.00113685,3174.3,3174.0,1.56961569]
[1642499334410,0.00227369,3174.5,3174.0,0.78225569]
[1642499334810,0.00170527,3174.4,3174.0,0.78225569]
[1642499335211,0.00113685,3174.3,3174.0,0.78225569]
[1642499335610,0.00227369,3174.5,3174.0,0.78225569]
[1642499336010,0.00170527,3174.4,3174.0,0.78225569]
[1642499336413,1.42569025,3174.6,3174.0,0.78225569]
[1642499336414,0.00113685,3174.3,3174.0,0.78225569]
[1642499336612,0.9268271,3174.6,3174.0,0.78225569]
[1642499336811,0.9268271,3174.6,3174.1,0.00113685]
[1642499337011,0.00113684,3174.5,3174.1,0.00113685]
[1642499337845,0.00113684,3174.5,3174.2,0.78225569]
[1642499338144,0.00113684,3174.5,3174.4,0.78225569]
[1642499338343,0.00113684,3174.5,3174.4,1.08225569]
[1642499339950,4.4869,3174.9,3174.8,0.78225569]
[1642499340151,5.89070775,3174.9,3174.8,0.78225569]
[1642499340750,5.89070775,3174.9,3174.8,1.08225569]
[1642499340954,5.89070775,3174.9,3174.8,2.08225569]
[1642499341598,5.89070775,3174.9,3174.8,4.77267452]
[1642499342392,5.89070775,3174.9,3174.8,3.47267452]
[1642499342593,6.01660775,3174.9,3174.8,3.47267452]
[1642499342992,5.89070775,3174.9,3174.8,3.47267452]
[1642499343591,5.89070775,3174.9,3174.8,0.78225569]
[1642499344198,5.89070775,3174.9,3174.7,1.85592788]
[1642499344397,5.1,3174.6,3173.7,1.34844552]
[1642499344596,5.1,3174.6,3173.7,5.38407376]
[1642499344856,1.3907751,3174.4,3173.8,0.00397896]
[1642499345057,0.126,3174.3,3173.8,0.00397896]
[1642499346260,0.126,3174.3,3173.4,0.00625265]
[1642499347362,0.126,3174.3,3173.9,2.69086926]
[1642499347761,0.126,3174.3,3174.0,0.00284211]
[1642499347960,1.3907751,3174.4,3174.0,0.00284211]
[1642499347961,1.5167751,3174.4,3174.0,0.00284211]
[1642499348363,1.5167751,3174.4,3173.6,1.00511581]
[1642499348584,1.5167751,3174.4,3173.7,0.00454738]
[1642499349193,5.47062524,3174.4,3173.7,0.00454738]
[1642499349394,1.5167751,3174.4,3173.6,0.00511581]
[1642499349994,1.1636461,3174.0,3173.6,0.00511581]
[1642499350191,1.1636461,3174.0,3173.7,2.69086926]
[1642499350192,0.126,3173.9,3173.7,2.69086926]
[1642499350392,0.126,3173.9,3173.6,0.00511581]
[1642499350393,5.35,3173.8,3173.6,0.00511581]
[1642499350590,4.826,3173.7,3173.3,0.126]
[1642499350791,4.7,3173.7,3173.3,0.126]
[1642499350992,1.51992662,3173.6,3173.3,0.126]
[1642499351193,1.33949395,3173.4,3173.3,0.126]
[1642499351397,4.55,3173.4,3173.0,1.34844552]
[1642499351592,4.55,3173.4,3172.5,0.02604552]
[1642499351593,4.6,3173.3,3172.5,0.02604552]
[1642499351792,0.126,3173.2,3172.5,0.02604552]
[1642499351997,4.076,3173.2,3173.1,0.00113684]
[1642499352193,0.126,3173.2,3173.1,0.00113684]
[1642499352439,0.126,3173.4,3173.1,0.00113684]
[1642499352942,3.7909,3173.5,3172.7,3.10616518]
[1642499353141,1.39392662,3173.6,3172.7,3.10616518]
[1642499353142,1.39392662,3173.6,3172.8,1.126]
[1642499353345,1.39392662,3173.6,3172.8,3.42929414]
[1642499353541,0.00113685,3173.5,3172.9,0.00227369]
[1642499353947,0.00113685,3173.5,3172.9,0.78995369]
[1642499354150,1.27637522,3173.0,3172.9,0.78995369]
[1642499354347,1.27637522,3173.0,3172.9,0.78768]
[1642499354548,1.27637522,3173.0,3172.8,0.426]
[1642499355148,0.00113685,3173.5,3173.3,2.50868548]
[1642499355548,1.38323857,3173.4,3173.3,2.50868548]
[1642499357103,1.38323857,3173.4,3173.3,2.80868548]
[1642499357501,0.00113685,3173.5,3173.3,2.80868548]
[1642499357700,0.00113685,3173.5,3173.4,0.3]
[1642499357900,0.00113685,3173.5,3173.4,0.426]
[1642499358100,0.00113685,3173.5,3173.4,1.726]
[1642499358401,0.00113685,3173.5,3173.4,3.14912286]
[1642499358599,0.00113685,3173.5,3173.4,6.12489351]
[1642499358802,0.00113685,3173.5,3173.4,4.70177065]
[1642499359001,0.00113685,3173.5,3173.4,1.726]
[1642499359840,0.00113685,3173.5,3173.4,0.126]
[1642499360641,0.00113685,3173.5,3173.3,2.80868548]
[1642499360844,0.00113685,3173.5,3173.4,1.0]
[1642499361045,0.00113685,3173.5,3173.4,1.3]
[1642499361641,0.00113685,3173.5,3173.4,4.24924493]
[1642499361842,0.00113685,3173.5,3173.4,5.92936816]
[1642499362042,0.00113685,3173.5,3173.4,1.6]
[1642499362246,0.00113685,3173.5,3173.4,1.726]
[1642499362845,0.00113685,3173.5,3173.4,1.426]
[1642499363247,0.00113685,3173.5,3173.4,4.26633611]
[1642499363699,0.00113685,3173.5,3173.4,6.11202143]
[1642499364599,0.00113685,3173.5,3173.4,3.14568532]
[1642499366704,0.00113685,3173.5,3173.4,6.07617269]
[1642499367104,0.00113685,3173.5,3173.4,6.53117269]
[1642499367943,0.00113685,3173.5,3173.4,6.35717269]
[1642499368949,0.00113685,3173.5,3173.4,3.42668532]
[1642499369149,0.00113685,3173.5,3173.4,6.35307249]
[1642499369351,0.00113685,3173.5,3173.4,3.42668532]
[1642499369649,0.00113685,3173.5,3173.4,6.38716512]
[1642499369851,0.00113685,3173.5,3173.4,6.68716512]
[1642499370351,0.00113685,3173.5,3173.4,6.65582286]
[1642499370551,0.00113685,3173.5,3173.4,2.181]
[1642499370952,0.00113685,3173.5,3173.4,5.15375745]
[1642499371196,0.00113685,3173.5,3173.4,5.19071811]
[1642499371794,0.00113685,3173.5,3173.4,7.88131362]
[1642499372194,0.00113685,3173.5,3173.4,9.05731907]
[1642499372395,0.00113685,3173.5,3173.4,8.93131907]
[1642499372600,0.00113685,3173.5,3173.4,5.92160096]
[1642499372794,5.97344189,3173.9,3173.6,0.0022737]
[1642499373295,0.00170527,3173.8,3173.6,0.4572737]
[1642499373497,0.00170527,3173.8,3173.6,0.0022737]
[1642499373701,4.02713685,3173.7,3173.6,0.0022737]
[1642499373898,3.90113685,3173.7,3173.6,0.0022737]
[1642499374946,4.85093685,3173.7,3173.6,0.0022737]
[1642499376145,4.02713685,3173.7,3173.6,0.0022737]
[1642499376648,0.12713685,3173.7,3173.6,0.0022737]
[1642499377046,0.00113685,3173.7,3173.6,0.0022737]
[1642499378049,1.34517462,3173.7,3173.6,0.0022737]
[1642499378250,0.00113685,3173.7,3173.6,0.0022737]
[1642499378802,0.00113685,3173.7,3173.6,4.2572737]
[1642499379001,0.00113685,3173.7,3173.6,1.9159737]
[1642499379200,0.00113685,3173.7,3173.6,4.35674225]
[1642499379400,0.00113685,3173.7,3173.6,5.56970545]
[1642499379601,0.00113685,3173.7,3173.6,5.60584432]
[1642499379803,0.00113685,3173.7,3173.6,24.14176243]
[1642499380406,4.4096,3174.9,3174.0,0.7873]
[1642499380605,4.4096,3174.9,3174.6,1.31332994]
[1642499380805,0.00625265,3174.8,3174.6,1.61332994]
[1642499381207,0.00568423,3174.7,3174.6,1.3]
[1642499381605,0.00568423,3174.7,3174.6,0.3]
[1642499381809,0.00568423,3174.7,3174.4,1.3]
[1642499382006,0.00568423,3174.7,3174.3,1.54234]
[1642499382206,0.00511581,3174.6,3174.4,1.0]
[1642499382452,0.00511581,3174.6,3174.3,2.93006038]
[1642499382653,0.00454738,3174.5,3174.4,1.0]
[1642499383656,0.00454738,3174.5,3174.3,0.3]
[1642499384053,0.00397896,3174.4,3174.1,0.426]
[1642499384253,0.00397896,3174.4,3174.1,0.126]
[1642499384456,0.00341054,3174.3,3174.1,0.426]
[1642499384652,0.00341054,3174.3,3174.1,0.126]
[1642499384852,0.00284211,3174.2,3174.1,0.126]
[1642499385053,0.00284211,3174.2,3174.1,1.426]
[1642499385457,0.00284211,3174.2,3174.1,3.00064]
[1642499385655,0.00284211,3174.2,3174.1,3.45564]
[1642499386096,0.00284211,3174.2,3174.1,1.881]
[1642499386501,0.00284211,3174.2,3174.1,3.57101923]
[1642499386698,0.00284211,3174.2,3174.1,4.57101923]
[1642499387303,0.00284211,3174.2,3174.1,1.881]
[1642499388704,0.00284211,3174.2,3174.1,3.39445401]
[1642499389306,0.00284211,3174.2,3174.1,1.881]
[1642499390343,0.00284211,3174.2,3174.1,3.81106236]
[1642499390947,0.00284211,3174.2,3174.1,4.59837236]
[1642499391144,0.00284211,3174.2,3174.1,4.47237236]
[1642499392547,0.00284211,3174.2,3174.1,3.68506236]
[1642499392746,0.00284211,3174.2,3174.1,2.5664]
[1642499392947,0.00284211,3174.2,3174.1,1.755]
[1642499394199,1.31224662,3174.2,3174.1,1.755]
[1642499394601,1.31224662,3174.2,3174.1,0.755]
[1642499395799,0.00284211,3174.2,3174.1,0.755]
[1642499397356,0.00284211,3174.2,3174.1,2.29766028]
[1642499400150,0.00284211,3174.2,3174.1,4.98779203]
[1642499400550,0.00284211,3174.2,3174.1,5.98779203]
[1642499401594,0.00284211,3174.2,3174.1,6.11379203]
[1642499402695,0.00284211,3174.2,3174.1,3.42366028]
[1642499402893,0.00284211,3174.2,3174.1,21.89366028]
[1642499403094,0.00284211,3174.2,3174.1,21.92893382]
[1642499403295,0.00284211,3174.2,3174.1,3.45893382]
[1642499404301,0.00284211,3174.2,3174.1,3.95888112]
[1642499405345,0.00284211,3174.2,3174.1,3.85888112]
[1642499437256,5.35,3173.7,3173.0,15.002]
[1642499437431,0.126,3173.6,3173.0,15.002]
[1642499437630,1.49043581,3173.5,3173.1,0.00227369]
[1642499437831,0.126,3173.4,3173.1,0.00227369]
[1642499438691,0.126,3173.4,3173.0,15.002]
[1642499438692,5.35,3173.3,3173.0,13.59467369]
[1642499438888,5.35,3173.3,3172.0,0.126]
[1642499438889,0.126,3173.2,3172.0,0.126]
[1642499439286,0.126,3173.2,3172.1,0.00568424]
[1642499439485,0.126,3173.2,3172.2,0.126]
[1642499439687,0.126,3173.2,3172.2,1.38756138]
[1642499439890,0.126,3173.2,3172.3,0.00454739]
[1642499440087,0.12713685,3173.3,3172.3,0.00454739]
[1642499440286,0.00113685,3173.3,3172.4,0.455]
[1642499440488,0.00113685,3173.3,3172.4,0.8209219]
[1642499440687,0.00113685,3173.3,3172.5,0.00341054]
[1642499440888,0.00113685,3173.3,3172.5,1.17406813]
[1642499441113,0.00113685,3173.3,3172.8,1.31666139]
[1642499441487,0.00113685,3173.3,3172.9,0.00113685]
[1642499442087,0.00113685,3173.3,3173.0,1.24245723]
[1642499442342,0.00113685,3173.3,3173.0,0.3]
[1642499442538,0.00113685,3173.3,3172.9,0.00113685]
[1642499443542,0.00113685,3173.3,3172.7,0.3022737]
[1642499443740,0.00113685,3173.3,3172.7,0.0022737]
[1642499443939,0.00113685,3173.3,3172.8,0.00170527]
[1642499444139,0.126,3173.2,3172.5,0.00341054]
[1642499444342,0.126,3173.2,3172.8,0.00170527]
[1642499444640,0.126,3173.2,3172.5,0.00341054]
[1642499445043,1.57727264,3173.2,3172.5,0.00341054]
[1642499445439,5.50677264,3173.2,3172.5,0.00341054]
[1642499446078,5.55404216,3173.2,3172.5,0.00341054]
[1642499446681,6.34206216,3173.2,3172.5,0.00341054]
[1642499447283,4.01015057,3173.1,3172.5,0.00341054]
[1642499447482,0.126,3173.0,3172.5,0.00341054]
[1642499447685,0.126,3173.1,3172.5,0.00341054]
[1642499447983,0.126,3173.1,3171.8,1.34161324]
[1642499448181,0.126,3173.1,3171.9,0.126]
[1642499448388,5.04417903,3173.1,3171.9,0.13282109]
[1642499448582,2.16939597,3173.1,3172.0,0.00625266]
[1642499448985,2.15723,3173.1,3172.0,0.00625266]
[1642499449386,0.78807,3173.0,3172.0,0.00625266]
[1642499449585,1.47238339,3172.1,3172.0,0.00625266]
[1642499449841,1.2667,3172.9,3172.0,0.00625266]
[1642499450032,1.2667,3172.9,3171.8,0.00738951]
[1642499450631,1.5667,3172.9,3171.8,0.00738951]
[1642499450834,1.21034428,3172.4,3171.8,0.00738951]
[1642499453580,1.21034428,3172.4,3171.8,0.00471651]
[1642499453785,1.21034428,3172.4,3171.8,0.30471651]
[1642499453985,1.21034428,3172.4,3171.6,0.00585336]
[1642499454187,0.126,3172.3,3171.9,0.00414809]
[1642499454386,2.29855428,3172.4,3171.6,0.00585336]
[1642499454786,1.99855428,3172.4,3171.6,0.00585336]
[1642499455291,2.29855428,3172.4,3171.3,0.00755863]
[1642499455488,0.126,3172.3,3171.3,0.00755863]
[1642499456087,0.126,3172.3,3171.2,0.00812705]
[1642499456088,1.50810247,3171.3,3171.2,0.00812705]
[1642499456686,1.50810247,3171.3,3171.1,0.00869547]
[1642499456888,1.50810247,3171.3,3171.2,0.126]
[1642499457088,1.50810247,3171.3,3171.2,0.66447543]
[1642499457344,1.50810247,3171.3,3171.2,0.97260248]
[1642499457537,1.50810247,3171.3,3171.2,0.84660248]
[1642499460546,3.9941,3172.2,3171.2,0.84660248]
[1642499460741,0.126,3172.2,3171.2,0.84660248]
[1642499460941,0.126,3172.2,3171.3,0.00755863]
[1642499461190,0.126,3172.2,3171.3,0.46255863]
[1642499461389,1.37716486,3171.6,3171.3,0.46255863]
[1642499461591,1.37716486,3171.6,3171.4,0.0069902]
[1642499462191,9.0511,3172.3,3171.4,0.0069902]
[1642499462391,0.126,3172.2,3171.4,0.0069902]
[1642499463395,1.22296588,3172.1,3171.4,0.0069902]
[1642499463594,0.126,3172.0,3171.4,0.0069902]
[1642499463797,0.126,3172.0,3171.3,0.00755863]
[1642499464848,0.9845,3172.0,3171.3,0.00755863]
[1642499465038,2.77281,3172.0,3171.3,0.00755863]
[1642499465236,2.77281,3172.0,3171.0,0.0092639]
[1642499465439,2.77281,3172.0,3170.6,0.01153759]
[1642499465640,1.44637211,3170.8,3170.6,0.01153759]
[1642499465844,1.44637211,3170.8,3170.5,0.01210601]
[1642499466438,1.44637211,3170.8,3170.5,1.01210601]
[1642499466639,1.44637211,3170.8,3170.6,0.53859685]
[1642499466838,1.44637211,3170.8,3170.6,0.55013444]
[1642499467040,1.44637211,3170.8,3170.7,0.01096917]
[1642499468239,1.44637211,3170.8,3170.2,0.01381128]
[1642499468443,1.44637211,3170.8,3170.2,1.01381128]
[1642499468892,1.44637211,3170.8,3170.3,0.01324286]
[1642499469096,1.44637211,3170.8,3170.3,0.55186592]
[1642499469494,1.44637211,3170.8,3170.4,0.01267444]
[1642499470595,0.126,3171.2,3170.4,0.01267444]
[1642499470796,7.4894,3171.3,3170.4,0.01267444]
[1642499470999,7.4894,3171.3,3170.6,0.01060474]
[1642499471193,7.4894,3171.3,3170.6,3.05283424]
[1642499471394,7.4894,3171.3,3170.7,0.01096917]
[1642499471593,7.4894,3171.3,3170.9,1.32301883]
[1642499471594,8.59933154,3171.3,3170.9,1.32301883]
[1642499471795,4.92673154,3171.3,3170.7,0.01096917]
[1642499471995,4.92673154,3171.3,3171.0,0.0092639]
[1642499472195,4.92673154,3171.3,3170.7,0.01096917]
[1642499472442,5.22673154,3171.3,3170.7,0.01096917]
[1642499472639,6.72681587,3171.3,3170.6,0.01153759]
[1642499472842,0.126,3171.2,3170.6,0.01153759]
[1642499473039,1.126,3171.2,3170.6,0.01153759]
[1642499473240,1.126,3171.2,3170.1,0.01437971]
[1642499473441,1.126,3171.2,3169.9,0.01551655]
[1642499473943,1.126,3171.2,3169.9,1.54883703]
[1642499474143,1.4360705,3170.5,3169.9,0.31551655]
[1642499474343,1.4360705,3170.5,3170.0,0.01494813]
[1642499474544,1.4360705,3170.5,3170.0,0.55362489]
[1642499474744,1.4360705,3170.5,3170.0,0.85362489]
[1642499474942,1.4360705,3170.5,3170.1,0.01437971]
[1642499476192,0.126,3170.4,3170.2,0.53867676]
[1642499476388,0.9129,3170.4,3170.2,0.53867676]
[1642499476588,0.9129,3170.4,3170.3,0.01324286]
[1642499476589,8.05162,3170.4,3170.3,0.01324286]
[1642499476989,7.50662,3170.4,3170.3,0.01324286]
[1642499477593,8.50662,3170.4,3170.3,0.01324286]
[1642499477989,8.50662,3170.4,3169.3,3.32978306]
[1642499477990,5.35,3170.3,3169.3,3.32978306]
[1642499478194,5.35,3170.3,3169.1,3.32978306]
[1642499478195,0.78887,3170.0,3169.1,3.32978306]
[1642499478388,0.78887,3170.0,3169.0,3.32978306]
[1642499478389,0.1262,3169.9,3169.0,3.32978306]
[1642499478588,0.1262,3169.9,3169.4,0.00284212]
[1642499478993,1.58267274,3169.8,3168.7,2.84926466]
[1642499479192,0.78892,3169.5,3168.8,3.33603572]
[1642499479393,0.78892,3169.5,3168.8,3.63603572]
[1642499479591,0.78892,3169.5,3168.9,0.00568424]
[1642499480341,1.48702134,3169.0,3168.9,0.30568424]
[1642499480538,0.78892,3169.5,3168.7,0.00682109]
[1642499480738,0.78892,3169.5,3168.6,1.78276405]
[1642499480739,4.89248,3169.7,3168.9,0.00568424]
[1642499480938,4.89248,3169.7,3168.7,0.00682109]
[1642499481443,4.89248,3169.7,3169.3,1.55810664]
[1642499481647,0.1262,3169.7,3169.3,1.55810664]